[Event "*** Titled Tuesday Blitz"]
[Site "Chess.com"]
[Date "2019.07.02"]
[Round "3"]
[White "CMS13"]
[Black "Grischuk"]
[Result "0-1"]
[WhiteElo "2057"]
[BlackElo "3090"]
[TimeControl "180+2"]
[EndTime "13:40:46 PDT"]
[Termination "Grischuk won by resignation"]

1. e4 {[%clk 0:03:01.9]} 1... c5 {[%clk 0:02:59.4]} 2. Nc3 {[%clk 0:03:02.6]}
2... Nc6 {[%clk 0:02:59.7]} 3. Bb5 {[%clk 0:03:03.2]} 3... Nd4 {[%clk
0:02:59.9]} 4. Nf3 {[%clk 0:03:04.1]} 4... a6 {[%clk 0:02:58.7]} 5. Bd3 {[%clk
0:03:04.1]} 5... Nc6 {[%clk 0:02:59.1]} 6. a4 {[%clk 0:02:50.7]} 6... g6 {[%clk
0:02:56.7]} 7. O-O {[%clk 0:02:50.7]} 7... Bg7 {[%clk 0:02:57.6]} 8. Ne2 {[%clk
0:02:49.2]} 8... d6 {[%clk 0:02:17.3]} 9. c3 {[%clk 0:02:49.8]} 9... e5 {[%clk
0:02:16.7]} 10. Bc2 {[%clk 0:02:46.7]} 10... Nge7 {[%clk 0:02:12]} 11. d4 {[%clk
0:02:41.7]} 11... exd4 {[%clk 0:02:13.9]} 12. cxd4 {[%clk 0:02:42.6]} 12... Bg4
{[%clk 0:02:15]} 13. d5 {[%clk 0:02:26.1]} 13... Nb4 {[%clk 0:02:13.5]} 14. Ra3
{[%clk 0:01:46.9]} 14... O-O {[%clk 0:02:06]} 15. h3 {[%clk 0:01:44.2]} 15...
Bxf3 {[%clk 0:02:03.8]} 16. Rxf3 {[%clk 0:01:44.3]} 16... Nxc2 {[%clk 0:02:00]}
17. Qxc2 {[%clk 0:01:45.3]} 17... Qd7 {[%clk 0:01:52.8]} 18. Nc3 {[%clk
0:01:42.1]} 18... b5 {[%clk 0:01:50.8]} 19. Be3 {[%clk 0:01:36.5]} 19... b4
{[%clk 0:01:36.2]} 20. Ne2 {[%clk 0:01:36.9]} 20... Rae8 {[%clk 0:01:19.5]} 21.
b3 {[%clk 0:01:31.3]} 21... a5 {[%clk 0:01:18.3]} 22. Qd2 {[%clk 0:01:28.8]}
22... f5 {[%clk 0:01:15.3]} 23. exf5 {[%clk 0:01:16]} 23... Rxf5 {[%clk
0:01:16]} 24. Rxf5 {[%clk 0:01:09.7]} 24... Qxf5 {[%clk 0:01:16.6]} 25. Ng3
{[%clk 0:01:07.9]} 25... Qxd5 {[%clk 0:01:16.1]} 26. Rd1 {[%clk 0:00:56.6]}
26... Qxd2 {[%clk 0:00:52.9]} 27. Rxd2 {[%clk 0:00:57.7]} 27... Nc8 {[%clk
0:00:54.6]} 28. Bf4 {[%clk 0:00:46.5]} 28... Re1+ {[%clk 0:00:51]} 29. Kh2
{[%clk 0:00:47]} 29... Be5 {[%clk 0:00:49]} 30. Bxe5 {[%clk 0:00:41.8]} 30...
Rxe5 {[%clk 0:00:50.9]} 31. Rc2 {[%clk 0:00:30.4]} 31... Kf7 {[%clk 0:00:50]}
32. f3 {[%clk 0:00:27.9]} 32... Nb6 {[%clk 0:00:46.1]} 33. Ne4 {[%clk
0:00:27.7]} 33... Ke7 {[%clk 0:00:47.6]} 34. Rd2 {[%clk 0:00:26.7]} 34... Rd5
{[%clk 0:00:38.8]} 35. Re2 {[%clk 0:00:21.4]} 35... Kf7 {[%clk 0:00:39.8]} 36.
Kg3 {[%clk 0:00:21.6]} 36... h6 {[%clk 0:00:40.7]} 37. Kf4 {[%clk 0:00:21.5]}
37... Rd3 {[%clk 0:00:40]} 38. Rb2 {[%clk 0:00:21.2]} 38... Nd5+ {[%clk
0:00:40.1]} 39. Kg3 {[%clk 0:00:21.4]} 39... Nc3 {[%clk 0:00:40.4]} 40. Nf2
{[%clk 0:00:20.2]} 40... Rd4 {[%clk 0:00:40.9]} 41. Rc2 {[%clk 0:00:20.1]} 41...
Ke6 {[%clk 0:00:38.4]} 42. Ng4 {[%clk 0:00:21.3]} 42... h5 {[%clk 0:00:38.3]}
43. Ne3 {[%clk 0:00:21.8]} 43... d5 {[%clk 0:00:39.5]} 44. Kf2 {[%clk
0:00:18.5]} 44... Rd3 {[%clk 0:00:39.1]} 45. Nf1 {[%clk 0:00:18.5]} 45... Kd6
{[%clk 0:00:37.2]} 46. Ng3 {[%clk 0:00:19.5]} 46... h4 {[%clk 0:00:31.6]} 47.
Nf1 {[%clk 0:00:20.1]} 47... c4 {[%clk 0:00:27.7]} 48. bxc4 {[%clk 0:00:19]}
48... dxc4 {[%clk 0:00:29.6]} 49. Ne3 {[%clk 0:00:19.1]} 49... Kc5 {[%clk
0:00:30.1]} 50. f4 {[%clk 0:00:17.3]} 50... b3 {[%clk 0:00:30]} 51. Rb2 {[%clk
0:00:18.3]} 51... Nxa4 {[%clk 0:00:29]} 52. Rb1 {[%clk 0:00:18.2]} 52... Nc3
{[%clk 0:00:30.2]} 53. Ra1 {[%clk 0:00:18.9]} 53... a4 {[%clk 0:00:30.9]} 54. f5
{[%clk 0:00:18.2]} 54... gxf5 {[%clk 0:00:31.5]} 55. Nxf5 {[%clk 0:00:19.6]}
55... b2 {[%clk 0:00:33.1]} 0-1

[Event "*** Titled Tuesday Blitz"]
[Site "Chess.com"]
[Date "2019.07.02"]
[Round "3"]
[White "WildTricks"]
[Black "temus_galaktionov"]
[Result "0-1"]
[WhiteElo "2322"]
[BlackElo "2519"]
[TimeControl "180+2"]
[EndTime "13:40:51 PDT"]
[Termination "temus_galaktionov won by resignation"]

1. e4 {[%clk 0:03:01.9]} 1... c6 {[%clk 0:03:01.9]} 2. d4 {[%clk 0:03:02.5]}
2... g6 {[%clk 0:03:03.8]} 3. Nc3 {[%clk 0:03:02.4]} 3... Bg7 {[%clk 0:03:05.1]}
4. Nf3 {[%clk 0:03:02.7]} 4... d6 {[%clk 0:03:06.3]} 5. h3 {[%clk 0:03:03.5]}
5... Nd7 {[%clk 0:03:07.3]} 6. Bd3 {[%clk 0:03:03.2]} 6... e5 {[%clk 0:03:08]}
7. Be3 {[%clk 0:03:00.5]} 7... Ngf6 {[%clk 0:03:08.2]} 8. Qd2 {[%clk 0:02:58]}
8... O-O {[%clk 0:03:07]} 9. Bh6 {[%clk 0:02:50.2]} 9... Re8 {[%clk 0:02:57.9]}
10. Bxg7 {[%clk 0:02:50.3]} 10... Kxg7 {[%clk 0:02:59.8]} 11. O-O {[%clk
0:02:45.2]} 11... Nf8 {[%clk 0:02:57.6]} 12. Rfe1 {[%clk 0:02:42.7]} 12... Qc7
{[%clk 0:02:57.2]} 13. Rad1 {[%clk 0:02:28.3]} 13... Ne6 {[%clk 0:02:55.9]} 14.
Bf1 {[%clk 0:02:24.1]} 14... a5 {[%clk 0:02:51.6]} 15. g3 {[%clk 0:02:19]} 15...
Bd7 {[%clk 0:02:29.7]} 16. a4 {[%clk 0:01:56]} 16... Rad8 {[%clk 0:02:27.6]} 17.
dxe5 {[%clk 0:01:36.7]} 17... dxe5 {[%clk 0:02:27.7]} 18. Qd6 {[%clk 0:01:37.1]}
18... Qxd6 {[%clk 0:02:17.7]} 19. Rxd6 {[%clk 0:01:37]} 19... Nc5 {[%clk
0:01:45.3]} 20. Red1 {[%clk 0:01:07.6]} 20... Rb8 {[%clk 0:01:43.3]} 21. g4
{[%clk 0:00:47.5]} 21... Be6 {[%clk 0:01:36.1]} 22. Nxe5 {[%clk 0:00:41.7]}
22... Nfxe4 {[%clk 0:01:34.8]} 23. Nxe4 {[%clk 0:00:42.4]} 23... Nxe4 {[%clk
0:01:35.8]} 24. R6d4 {[%clk 0:00:42.5]} 24... Nc5 {[%clk 0:01:29.5]} 25. Nc4
{[%clk 0:00:37.2]} 25... Bxc4 {[%clk 0:01:27]} 26. Bxc4 {[%clk 0:00:17.3]} 26...
Re7 {[%clk 0:01:27.3]} 27. b3 {[%clk 0:00:17]} 27... Rbe8 {[%clk 0:01:24.9]} 28.
Kg2 {[%clk 0:00:17.9]} 28... g5 {[%clk 0:01:17.6]} 29. Kg3 {[%clk 0:00:17.4]}
29... h6 {[%clk 0:01:17.5]} 30. Kg2 {[%clk 0:00:18.6]} 30... Re1 {[%clk
0:01:14.5]} 31. Kg3 {[%clk 0:00:17.5]} 31... Rxd1 {[%clk 0:01:05.7]} 32. Rxd1
{[%clk 0:00:19.4]} 32... f6 {[%clk 0:01:03.8]} 33. f3 {[%clk 0:00:15]} 33... Kf8
{[%clk 0:00:55.6]} 34. c3 {[%clk 0:00:14.9]} 34... Re3 {[%clk 0:00:56.4]} 35.
Rd8+ {[%clk 0:00:12.6]} 35... Ke7 {[%clk 0:00:57.2]} 36. Rh8 {[%clk 0:00:12.4]}
36... Rxc3 {[%clk 0:00:53]} 37. Rh7+ {[%clk 0:00:13.3]} 37... Kd6 {[%clk
0:00:52.9]} 38. Rxh6 {[%clk 0:00:14.4]} 38... Ke5 {[%clk 0:00:53.6]} 39. Rh7
{[%clk 0:00:14.2]} 39... Ne4+ {[%clk 0:00:54]} 40. Kg2 {[%clk 0:00:13.6]} 40...
Rc2+ {[%clk 0:00:55.3]} 41. Kf1 {[%clk 0:00:14.1]} 41... Nd2+ {[%clk 0:00:56.4]}
42. Ke1 {[%clk 0:00:13.6]} 42... Nxc4 {[%clk 0:00:51.2]} 43. bxc4 {[%clk
0:00:13.8]} 43... Rxc4 {[%clk 0:00:51]} 44. Rxb7 {[%clk 0:00:15.2]} 44... Rxa4
{[%clk 0:00:52.1]} 45. Rc7 {[%clk 0:00:12]} 45... Rc4 {[%clk 0:00:51]} 46. Ra7
{[%clk 0:00:11.9]} 46... a4 {[%clk 0:00:51.4]} 47. Ke2 {[%clk 0:00:12.4]} 47...
Kf4 {[%clk 0:00:51.7]} 48. Rf7 {[%clk 0:00:10.3]} 48... a3 {[%clk 0:00:45.2]}
49. Rxf6+ {[%clk 0:00:11.1]} 49... Kg3 {[%clk 0:00:46.5]} 50. Rf5 {[%clk
0:00:11]} 50... Ra4 {[%clk 0:00:47.4]} 51. Rxg5 {[%clk 0:00:07.2]} 51... a2
{[%clk 0:00:48.5]} 0-1

[Event "*** Titled Tuesday Blitz"]
[Site "Chess.com"]
[Date "2019.07.02"]
[Round "3"]
[White "platy3"]
[Black "bubacik"]
[Result "1-0"]
[WhiteElo "2810"]
[BlackElo "2689"]
[TimeControl "180+2"]
[EndTime "13:40:52 PDT"]
[Termination "platy3 won on time"]

1. e4 {[%clk 0:03:01.6]} 1... e5 {[%clk 0:03:00.5]} 2. Nf3 {[%clk 0:03:02.4]}
2... Nc6 {[%clk 0:03:01.9]} 3. Bb5 {[%clk 0:03:03.6]} 3... a6 {[%clk 0:03:01.6]}
4. Ba4 {[%clk 0:03:04.9]} 4... b5 {[%clk 0:03:02.9]} 5. Bb3 {[%clk 0:03:05.7]}
5... Na5 {[%clk 0:03:04.6]} 6. O-O {[%clk 0:03:03.3]} 6... d6 {[%clk 0:03:03.5]}
7. d4 {[%clk 0:03:01.1]} 7... exd4 {[%clk 0:03:05.4]} 8. Nxd4 {[%clk 0:02:55.7]}
8... Bb7 {[%clk 0:03:05.1]} 9. Re1 {[%clk 0:02:55.3]} 9... Nxb3 {[%clk
0:02:54.7]} 10. axb3 {[%clk 0:02:55]} 10... Nf6 {[%clk 0:02:55.2]} 11. Nc3
{[%clk 0:02:54.3]} 11... Be7 {[%clk 0:02:54.6]} 12. Nf5 {[%clk 0:02:51.5]} 12...
O-O {[%clk 0:02:50.9]} 13. Bg5 {[%clk 0:02:47.1]} 13... Kh8 {[%clk 0:02:12.1]}
14. Nxe7 {[%clk 0:02:44.5]} 14... Qxe7 {[%clk 0:02:13.3]} 15. Nd5 {[%clk
0:02:46.1]} 15... Bxd5 {[%clk 0:02:02.1]} 16. exd5 {[%clk 0:02:47.2]} 16... Qd7
{[%clk 0:01:55.9]} 17. Bxf6 {[%clk 0:02:27]} 17... gxf6 {[%clk 0:01:57.8]} 18.
Qf3 {[%clk 0:02:28.4]} 18... f5 {[%clk 0:01:47.5]} 19. Qc3+ {[%clk 0:02:29.2]}
19... Kg8 {[%clk 0:01:34.1]} 20. Re3 {[%clk 0:02:26.6]} 20... f4 {[%clk
0:01:30.6]} 21. Re4 {[%clk 0:02:19.2]} 21... Qf5 {[%clk 0:01:27]} 22. Rae1
{[%clk 0:02:20.4]} 22... h6 {[%clk 0:00:55.6]} 23. Qd2 {[%clk 0:02:13.8]} 23...
Qg5 {[%clk 0:00:45.1]} 24. h3 {[%clk 0:01:59.1]} 24... Kh7 {[%clk 0:00:33.6]}
25. Rxf4 {[%clk 0:01:55.3]} 25... Qg6 {[%clk 0:00:03.5]} 26. Rg4 {[%clk
0:01:50.3]} 26... Qf6 {[%clk 0:00:02.7]} 27. Rf4 {[%clk 0:01:38.3]} 27... Qg6
{[%clk 0:00:04.1]} 28. Re3 {[%clk 0:01:38.2]} 28... Rae8 {[%clk 0:00:04.8]} 29.
Rg3 {[%clk 0:01:38.4]} 29... Qh5 {[%clk 0:00:05.8]} 30. Rfg4 {[%clk 0:01:30.2]}
30... Rg8 {[%clk 0:00:05.6]} 31. Qd3+ {[%clk 0:01:30.4]} 31... f5 {[%clk
0:00:06.5]} 32. Rxg8 {[%clk 0:01:20.4]} 32... Rxg8 {[%clk 0:00:08.4]} 33. Rf3
{[%clk 0:01:19.8]} 33... Rf8 {[%clk 0:00:04.7]} 34. g4 {[%clk 0:01:15.1]} 34...
Qg5 {[%clk 0:00:03.1]} 35. Rxf5 {[%clk 0:01:14.5]} 35... Qc1+ {[%clk 0:00:02.7]}
36. Kg2 {[%clk 0:01:14.8]} 36... Rxf5 {[%clk 0:00:03.9]} 37. Qxf5+ {[%clk
0:01:16.1]} 37... Kg7 {[%clk 0:00:05.6]} 38. Qd7+ {[%clk 0:01:16.6]} 38... Kf6
{[%clk 0:00:06.8]} 39. Qe6+ {[%clk 0:01:15.2]} 39... Kg7 {[%clk 0:00:06.6]} 40.
Qd7+ {[%clk 0:01:16]} 40... Kf6 {[%clk 0:00:07.9]} 41. Qxc7 {[%clk 0:01:17.6]}
41... Ke5 {[%clk 0:00:09.3]} 42. Qf7 {[%clk 0:01:11.1]} 42... Qxc2 {[%clk
0:00:04.8]} 43. Qe6+ {[%clk 0:01:11.5]} 43... Kd4 {[%clk 0:00:04.9]} 44. Qxd6
{[%clk 0:01:10.7]} 44... Qe4+ {[%clk 0:00:05.6]} 45. Kh2 {[%clk 0:01:12.2]}
45... Qc2 {[%clk 0:00:05.4]} 46. Qf4+ {[%clk 0:00:52.3]} 46... Kxd5 {[%clk
0:00:06.5]} 47. Qf5+ {[%clk 0:00:48]} 47... Qxf5 {[%clk 0:00:02.4]} 48. gxf5
{[%clk 0:00:49.9]} 48... Ke5 {[%clk 0:00:02.3]} 49. b4 {[%clk 0:00:51]} 49...
Kxf5 {[%clk 0:00:02.2]} 50. Kg3 {[%clk 0:00:52.4]} 50... Ke4 {[%clk 0:00:02.4]}
51. f4 {[%clk 0:00:53.4]} 51... Kf5 {[%clk 0:00:02.2]} 52. Kf3 {[%clk
0:00:54.4]} 52... h5 {[%clk 0:00:02.4]} 53. h4 {[%clk 0:00:54.5]} 53... Kf6
{[%clk 0:00:02.5]} 54. Ke4 {[%clk 0:00:55.8]} 54... Ke6 {[%clk 0:00:02.1]} 55.
f5+ {[%clk 0:00:57.1]} 55... Kf6 {[%clk 0:00:02.3]} 56. Kf4 {[%clk 0:00:58.4]}
56... a5 {[%clk 0:00:02.2]} 57. bxa5 {[%clk 0:00:59.1]} 1-0

[Event "*** Titled Tuesday Blitz"]
[Site "Chess.com"]
[Date "2019.07.02"]
[Round "3"]
[White "WeAintSurePal"]
[Black "volcanoexplorer"]
[Result "0-1"]
[WhiteElo "2330"]
[BlackElo "2539"]
[TimeControl "180+2"]
[EndTime "13:40:52 PDT"]
[Termination "volcanoexplorer won by checkmate"]

1. d4 {[%clk 0:03:01.9]} 1... Nf6 {[%clk 0:03:01.2]} 2. Nf3 {[%clk 0:02:58.7]}
2... e6 {[%clk 0:03:02.4]} 3. g3 {[%clk 0:02:59]} 3... b6 {[%clk 0:03:02.8]} 4.
Bg2 {[%clk 0:03:00.1]} 4... Bb7 {[%clk 0:03:04.5]} 5. O-O {[%clk 0:03:01.7]}
5... Be7 {[%clk 0:03:06]} 6. c4 {[%clk 0:03:02.8]} 6... O-O {[%clk 0:03:06.7]}
7. Nc3 {[%clk 0:02:57.1]} 7... Ne4 {[%clk 0:03:07.2]} 8. Qc2 {[%clk 0:02:58]}
8... Nxc3 {[%clk 0:03:02.8]} 9. Qxc3 {[%clk 0:02:59]} 9... f5 {[%clk 0:03:03]}
10. b4 {[%clk 0:02:55.8]} 10... d6 {[%clk 0:02:51.2]} 11. Bb2 {[%clk 0:02:45]}
11... Nd7 {[%clk 0:02:38.7]} 12. Rad1 {[%clk 0:02:09.9]} 12... Nf6 {[%clk
0:02:21.3]} 13. Ng5 {[%clk 0:01:32.1]} 13... Bxg2 {[%clk 0:02:03.3]} 14. Kxg2
{[%clk 0:01:33.3]} 14... Qc8 {[%clk 0:01:23.2]} 15. Qe3 {[%clk 0:01:27.3]} 15...
e5 {[%clk 0:00:55]} 16. dxe5 {[%clk 0:01:21.2]} 16... dxe5 {[%clk 0:00:53.3]}
17. Qxe5 {[%clk 0:01:11.2]} 17... Bxb4 {[%clk 0:00:48.8]} 18. Qe6+ {[%clk
0:00:54.7]} 18... Qxe6 {[%clk 0:00:47.9]} 19. Nxe6 {[%clk 0:00:56.6]} 19... Rf7
{[%clk 0:00:46.3]} 20. Bxf6 {[%clk 0:00:51.4]} 20... gxf6 {[%clk 0:00:35.9]} 21.
e3 {[%clk 0:00:50.7]} 21... Re8 {[%clk 0:00:35]} 22. Nf4 {[%clk 0:00:51.7]}
22... c6 {[%clk 0:00:35.2]} 23. Rd3 {[%clk 0:00:50.7]} 23... Re4 {[%clk
0:00:27.8]} 24. Rc1 {[%clk 0:00:45.8]} 24... Rfe7 {[%clk 0:00:24]} 25. Rd8+
{[%clk 0:00:38.1]} 25... Kf7 {[%clk 0:00:25.1]} 26. Rc8 {[%clk 0:00:38.2]} 26...
Rd7 {[%clk 0:00:15.1]} 27. Rxc6 {[%clk 0:00:36.9]} 27... Rd2 {[%clk 0:00:15.9]}
28. Rc7+ {[%clk 0:00:37.2]} 28... Be7 {[%clk 0:00:15.8]} 29. Rxa7 {[%clk
0:00:27.6]} 29... Rxe3 {[%clk 0:00:17]} 30. c5 {[%clk 0:00:21.1]} 30... bxc5
{[%clk 0:00:12.2]} 31. Rxc5 {[%clk 0:00:22.4]} 31... Ra3 {[%clk 0:00:13.3]} 32.
Rxa3 {[%clk 0:00:23.5]} 32... Bxc5 {[%clk 0:00:14.5]} 33. Rf3 {[%clk 0:00:23.9]}
33... Rxa2 {[%clk 0:00:15.9]} 34. Nd3 {[%clk 0:00:25]} 34... Bd4 {[%clk
0:00:17.1]} 35. Rf4 {[%clk 0:00:25.7]} 35... Bc3 {[%clk 0:00:15.6]} 36. Rxf5
{[%clk 0:00:26.7]} 36... Ke6 {[%clk 0:00:17.1]} 37. Rc5 {[%clk 0:00:26.7]} 37...
Bd4 {[%clk 0:00:17.3]} 38. Rc4 {[%clk 0:00:27.7]} 38... Ba7 {[%clk 0:00:06.8]}
39. Rc7 {[%clk 0:00:25.5]} 39... Kf5 {[%clk 0:00:06.4]} 40. h3 {[%clk
0:00:24.4]} 40... h5 {[%clk 0:00:07.2]} 41. Rd7 {[%clk 0:00:24.1]} 41... Ke4
{[%clk 0:00:05.9]} 42. Rd8 {[%clk 0:00:23.2]} 42... Bb6 {[%clk 0:00:06.8]} 43.
Rd6 {[%clk 0:00:23.8]} 43... Bd4 {[%clk 0:00:08.3]} 44. Nb4 {[%clk 0:00:20]}
44... Rxf2+ {[%clk 0:00:09.4]} 45. Kh1 {[%clk 0:00:21.6]} 45... Bc5 {[%clk
0:00:11]} 46. Re6+ {[%clk 0:00:21.9]} 46... Kf5 {[%clk 0:00:12.1]} 47. Nd3
{[%clk 0:00:20.1]} 47... Kxe6 {[%clk 0:00:12.9]} 48. Nxc5+ {[%clk 0:00:22]}
48... Kd5 {[%clk 0:00:14.1]} 49. Nd3 {[%clk 0:00:23]} 49... Rd2 {[%clk
0:00:11.9]} 50. Nf4+ {[%clk 0:00:24.3]} 50... Ke4 {[%clk 0:00:11.7]} 51. Nxh5
{[%clk 0:00:25.8]} 51... f5 {[%clk 0:00:13.2]} 52. Nf6+ {[%clk 0:00:26.2]} 52...
Kf3 {[%clk 0:00:14.4]} 53. g4 {[%clk 0:00:27.7]} 53... Kg3 {[%clk 0:00:14.2]}
54. Ne4+ {[%clk 0:00:28.3]} 54... fxe4 {[%clk 0:00:14.7]} 55. h4 {[%clk
0:00:28.5]} 55... Rd1# {[%clk 0:00:16.1]} 0-1

[Event "*** Titled Tuesday Blitz"]
[Site "Chess.com"]
[Date "2019.07.02"]
[Round "3"]
[White "Alexander_Moskalenko"]
[Black "Pechen_Yeltsina"]
[Result "1-0"]
[WhiteElo "2860"]
[BlackElo "2686"]
[TimeControl "180+2"]
[EndTime "13:40:57 PDT"]
[Termination "Alexander_Moskalenko won on time"]

1. d4 {[%clk 0:02:57.6]} 1... d6 {[%clk 0:02:58.9]} 2. e4 {[%clk 0:02:57.4]}
2... g6 {[%clk 0:02:52]} 3. Nc3 {[%clk 0:02:56.6]} 3... Bg7 {[%clk 0:02:53.4]}
4. Be3 {[%clk 0:02:57.9]} 4... a6 {[%clk 0:02:54.7]} 5. Qd2 {[%clk 0:02:57.5]}
5... Nd7 {[%clk 0:02:55.3]} 6. f3 {[%clk 0:02:58.8]} 6... b5 {[%clk 0:02:56.5]}
7. O-O-O {[%clk 0:03:00.4]} 7... Bb7 {[%clk 0:02:57.5]} 8. h4 {[%clk 0:03:02.1]}
8... h6 {[%clk 0:02:58.6]} 9. Nh3 {[%clk 0:02:43.1]} 9... Rc8 {[%clk 0:02:57.3]}
10. Kb1 {[%clk 0:02:33.5]} 10... Nb6 {[%clk 0:02:56.2]} 11. Nf4 {[%clk
0:02:32.9]} 11... Nf6 {[%clk 0:02:53.7]} 12. e5 {[%clk 0:02:30.6]} 12... Nfd5
{[%clk 0:02:40.5]} 13. Ncxd5 {[%clk 0:02:20.3]} 13... Nxd5 {[%clk 0:02:42.4]}
14. e6 {[%clk 0:02:21.4]} 14... Nxf4 {[%clk 0:02:37.9]} 15. exf7+ {[%clk
0:02:22.2]} 15... Kxf7 {[%clk 0:02:39.8]} 16. Bxf4 {[%clk 0:02:24]} 16... c5
{[%clk 0:02:37.2]} 17. dxc5 {[%clk 0:02:18.3]} 17... Rxc5 {[%clk 0:02:36.1]} 18.
Bd3 {[%clk 0:02:19.8]} 18... Qd7 {[%clk 0:01:45.2]} 19. Be3 {[%clk 0:02:14.9]}
19... Rc7 {[%clk 0:01:32.7]} 20. Rhf1 {[%clk 0:02:09.4]} 20... Rhc8 {[%clk
0:01:27.8]} 21. Bxh6 {[%clk 0:02:04.5]} 21... Rh8 {[%clk 0:01:26.3]} 22. Bxg7
{[%clk 0:02:04.9]} 22... Kxg7 {[%clk 0:01:28.2]} 23. Qg5 {[%clk 0:02:03.7]}
23... Qe6 {[%clk 0:01:26.6]} 24. Rde1 {[%clk 0:01:48.2]} 24... Qf6 {[%clk
0:01:27]} 25. Qxf6+ {[%clk 0:01:49.5]} 25... Kxf6 {[%clk 0:01:28.5]} 26. g3
{[%clk 0:01:51.4]} 26... b4 {[%clk 0:01:11.2]} 27. f4 {[%clk 0:01:51.1]} 27...
a5 {[%clk 0:01:12]} 28. Re3 {[%clk 0:01:51.8]} 28... Bd5 {[%clk 0:01:11.3]} 29.
Be4 {[%clk 0:01:41.7]} 29... Bf7 {[%clk 0:01:09.3]} 30. a3 {[%clk 0:01:34.6]}
30... Rc4 {[%clk 0:00:59.8]} 31. Bd3 {[%clk 0:01:33.8]} 31... Rc5 {[%clk
0:00:53]} 32. axb4 {[%clk 0:01:21.3]} 32... axb4 {[%clk 0:00:54.9]} 33. Rfe1
{[%clk 0:01:23]} 33... Rc7 {[%clk 0:00:55.8]} 34. b3 {[%clk 0:01:23.4]} 34...
Bd5 {[%clk 0:00:52.3]} 35. Kb2 {[%clk 0:01:24.4]} 35... Ra7 {[%clk 0:00:51.4]}
36. Ra1 {[%clk 0:01:25.3]} 36... Rxa1 {[%clk 0:00:52.1]} 37. Kxa1 {[%clk
0:01:27.2]} 37... e5 {[%clk 0:00:50.1]} 38. fxe5+ {[%clk 0:01:26.4]} 38... dxe5
{[%clk 0:00:52]} 39. Be4 {[%clk 0:01:27.9]} 39... Be6 {[%clk 0:00:47]} 40. Rf3+
{[%clk 0:01:27.9]} 40... Kg7 {[%clk 0:00:48.4]} 41. Kb2 {[%clk 0:01:21.6]} 41...
Rd8 {[%clk 0:00:49.6]} 42. Rd3 {[%clk 0:01:22.7]} 42... Rxd3 {[%clk 0:00:33.6]}
43. Bxd3 {[%clk 0:01:18.8]} 43... Kh6 {[%clk 0:00:34.9]} 44. c3 {[%clk
0:01:19.4]} 44... bxc3+ {[%clk 0:00:36.8]} 45. Kxc3 {[%clk 0:01:20.3]} 45... g5
{[%clk 0:00:38.1]} 46. hxg5+ {[%clk 0:01:19.1]} 46... Kxg5 {[%clk 0:00:40]} 47.
Be2 {[%clk 0:01:21]} 47... Kf5 {[%clk 0:00:39.8]} 48. b4 {[%clk 0:01:20.9]}
48... Ke4 {[%clk 0:00:40.2]} 49. b5 {[%clk 0:01:21.9]} 49... Bc8 {[%clk
0:00:31.7]} 50. b6 {[%clk 0:01:11.2]} 50... Kd5 {[%clk 0:00:29.3]} 51. Kb4
{[%clk 0:01:07.8]} 51... Kc6 {[%clk 0:00:29]} 52. Ka5 {[%clk 0:01:07.6]} 52...
e4 {[%clk 0:00:29.4]} 53. g4 {[%clk 0:01:09]} 53... Bb7 {[%clk 0:00:15.8]} 54.
g5 {[%clk 0:01:09.7]} 54... Kd6 {[%clk 0:00:16.7]} 55. Kb4 {[%clk 0:01:05.3]}
55... Ke5 {[%clk 0:00:16.2]} 56. Bg4 {[%clk 0:00:56.1]} 56... e3 {[%clk
0:00:02]} 57. Kc3 {[%clk 0:00:56.9]} 57... Kf4 {[%clk 0:00:03.2]} 58. g6 {[%clk
0:00:57.7]} 1-0

[Event "*** Titled Tuesday Blitz"]
[Site "Chess.com"]
[Date "2019.07.02"]
[Round "3"]
[White "swisspower96"]
[Black "Jospem"]
[Result "1-0"]
[WhiteElo "2720"]
[BlackElo "2872"]
[TimeControl "180+2"]
[EndTime "13:40:59 PDT"]
[Termination "swisspower96 won by resignation"]

1. d4 {[%clk 0:03:01.9]} 1... Nf6 {[%clk 0:02:59.3]} 2. c4 {[%clk 0:03:00.5]}
2... e6 {[%clk 0:03:00.6]} 3. Nf3 {[%clk 0:02:59.7]} 3... b6 {[%clk 0:03:01.2]}
4. g3 {[%clk 0:03:00.8]} 4... Ba6 {[%clk 0:03:02.4]} 5. Nbd2 {[%clk 0:03:01.6]}
5... Bb4 {[%clk 0:02:43]} 6. Qa4 {[%clk 0:03:01.1]} 6... Be7 {[%clk 0:02:39.3]}
7. Bg2 {[%clk 0:02:57.8]} 7... O-O {[%clk 0:02:39.2]} 8. O-O {[%clk 0:02:58.9]}
8... c6 {[%clk 0:02:39.5]} 9. Ne5 {[%clk 0:02:46.8]} 9... Bb7 {[%clk 0:02:40.2]}
10. Qb3 {[%clk 0:02:42.8]} 10... d6 {[%clk 0:02:39.1]} 11. Nd3 {[%clk
0:02:43.3]} 11... d5 {[%clk 0:02:39.7]} 12. Nf3 {[%clk 0:02:22.1]} 12... a5
{[%clk 0:02:39.9]} 13. Bf4 {[%clk 0:02:18.3]} 13... Na6 {[%clk 0:02:22.7]} 14.
c5 {[%clk 0:02:09.5]} 14... b5 {[%clk 0:02:17.5]} 15. a4 {[%clk 0:02:09.9]}
15... b4 {[%clk 0:02:17.1]} 16. Nd2 {[%clk 0:02:00.8]} 16... Nb8 {[%clk
0:02:18.1]} 17. Rfe1 {[%clk 0:02:00.5]} 17... Ba6 {[%clk 0:02:18.9]} 18. Rad1
{[%clk 0:01:55.6]} 18... Nbd7 {[%clk 0:02:18.6]} 19. e4 {[%clk 0:01:51.6]} 19...
Rc8 {[%clk 0:01:57.2]} 20. Qc2 {[%clk 0:01:23.4]} 20... dxe4 {[%clk 0:01:44.6]}
21. Nxe4 {[%clk 0:01:24]} 21... Nxe4 {[%clk 0:01:45.8]} 22. Bxe4 {[%clk
0:01:24.8]} 22... Nf6 {[%clk 0:01:47.2]} 23. Ne5 {[%clk 0:01:18.3]} 23... Nxe4
{[%clk 0:01:46.7]} 24. Qxe4 {[%clk 0:01:19.6]} 24... Qd5 {[%clk 0:01:41.5]} 25.
Qxd5 {[%clk 0:01:18.1]} 25... cxd5 {[%clk 0:01:43.4]} 26. Rc1 {[%clk 0:00:58.6]}
26... Rfd8 {[%clk 0:01:42.2]} 27. Nf3 {[%clk 0:00:56.7]} 27... Bc4 {[%clk
0:01:24.6]} 28. Nd2 {[%clk 0:00:55.8]} 28... Bd3 {[%clk 0:01:23.8]} 29. Nb3
{[%clk 0:00:45.9]} 29... Ra8 {[%clk 0:01:22.1]} 30. Bc7 {[%clk 0:00:46.6]} 30...
Rdc8 {[%clk 0:01:23.2]} 31. Bb6 {[%clk 0:00:47.9]} 31... Bg5 {[%clk 0:01:15.2]}
32. f4 {[%clk 0:00:44.5]} 32... Bf6 {[%clk 0:01:16.3]} 33. Red1 {[%clk
0:00:44.7]} 33... Be2 {[%clk 0:00:59.3]} 34. Rd2 {[%clk 0:00:43.7]} 34... Ba6
{[%clk 0:01:00.7]} 35. Nxa5 {[%clk 0:00:41.3]} 35... g5 {[%clk 0:01:02.1]} 36.
Kf2 {[%clk 0:00:41.6]} 36... gxf4 {[%clk 0:01:02.8]} 37. gxf4 {[%clk 0:00:43.1]}
37... h5 {[%clk 0:01:03.6]} 38. Kf3 {[%clk 0:00:42.2]} 38... Kh7 {[%clk
0:01:03.7]} 39. c6 {[%clk 0:00:40.7]} 39... Kg6 {[%clk 0:00:53.5]} 40. c7 {[%clk
0:00:37.8]} 40... Kf5 {[%clk 0:00:47.9]} 41. b3 {[%clk 0:00:33.6]} 41... Rg8
{[%clk 0:00:37.6]} 42. Nc6 {[%clk 0:00:26.3]} 42... Rg4 {[%clk 0:00:36.5]} 43.
Nb8 {[%clk 0:00:20.9]} 43... Rxf4+ {[%clk 0:00:21.5]} 44. Kg2 {[%clk 0:00:22.2]}
44... Bg5 {[%clk 0:00:18.2]} 45. Nxa6 {[%clk 0:00:20.9]} 45... Rg4+ {[%clk
0:00:18.6]} 46. Kf2 {[%clk 0:00:21.8]} 46... Rc8 {[%clk 0:00:12.5]} 47. Rdc2
{[%clk 0:00:23]} 47... Bxc1 {[%clk 0:00:13.1]} 48. Rxc1 {[%clk 0:00:24.9]} 48...
Ke4 {[%clk 0:00:12.5]} 49. Nc5+ {[%clk 0:00:24.8]} 49... Kf5 {[%clk 0:00:10.4]}
50. Nb7 {[%clk 0:00:25.6]} 50... Rf4+ {[%clk 0:00:10.3]} 51. Ke2 {[%clk
0:00:26]} 51... Re4+ {[%clk 0:00:11.3]} 52. Kd3 {[%clk 0:00:27.5]} 52... Kf4
{[%clk 0:00:11.4]} 53. Rf1+ {[%clk 0:00:27.4]} 53... Kg4 {[%clk 0:00:12.1]} 54.
Nd6 {[%clk 0:00:28]} 1-0